fUSD/lending_fUSD_20250312
["ID","MTS","AMOUNT","RATE_DAILY","PERIOD"]
[355977417,1741756235916,-500.0,9.998e-05,2]
[355977418,1741756235925,-500.0,9.998e-05,2]
[355977419,1741756235934,-500.0,9.998e-05,2]
[355977420,1741756235944,-500.0,9.998e-05,2]
[355977421,1741756235953,-647.25,9.998e-05,2]
[355977422,1741756235962,-654.0,9.998e-05,2]
[355977423,1741756235972,-500.0,9.998e-05,2]
[355977424,1741756235982,-500.0,9.998e-05,2]
[355977425,1741756235991,-500.0,9.998e-05,2]
[355977426,1741756236000,-500.0,9.998e-05,2]
[355977427,1741756236010,-500.0,9.998e-05,2]
[355977428,1741756236019,-500.0,9.998e-05,2]
[355977429,1741756236028,-500.0,9.998e-05,2]
[355977430,1741756236037,-500.0,9.998e-05,2]
[355977431,1741756236047,-646.5902245,9.998e-05,2]
[355977432,1741756236057,-500.0,9.998e-05,2]
[355977433,1741756236066,-500.0,9.998e-05,2]
[355977434,1741756236076,-500.0,9.998e-05,2]
[355977435,1741756236085,-500.0,9.998e-05,2]
[355977436,1741756236095,-516.0,9.998e-05,2]
[355977437,1741756236103,-500.0,9.998e-05,2]
[355977438,1741756236113,-500.0,9.998e-05,2]
[355977439,1741756236122,-573.34,9.998e-05,2]
[355977440,1741756236131,-500.0,9.998e-05,2]
[355977441,1741756236141,-631.48,9.998e-05,2]
[355977442,1741756236151,-500.0,9.998e-05,2]
[355977443,1741756236160,-500.0,9.998e-05,2]
[355977444,1741756236170,-604.95,9.998e-05,2]
[355977445,1741756236179,-539.83,9.998e-05,2]
[355977446,1741756236188,-186.60074776,9.998e-05,2]
[355977447,1741756236197,-500.0,9.998e-05,2]
[355977448,1741756236206,-500.0,9.998e-05,2]
[355977449,1741756236215,-500.0,9.998e-05,2]
[355977450,1741756236225,-500.0,9.998e-05,2]
[355977451,1741756236235,-538.29,9.998e-05,2]
[355977452,1741756236244,-500.0,9.998e-05,2]
[355977453,1741756236254,-1260.77,9.998e-05,2]
[355977454,1741756236263,-1914.48,9.998e-05,2]
[355977455,1741756236272,-528.18,9.998e-05,2]
[355977456,1741756236281,-941.23,9.998e-05,2]
[355977457,1741756236291,-500.0,9.998e-05,2]
[355977458,1741756236300,-1165.96,9.998e-05,2]
[355977459,1741756236309,-500.0,9.998e-05,2]
[355977460,1741756236319,-500.0,9.998e-05,2]
[355977461,1741756236329,-1811.11,9.998e-05,2]
[355977462,1741756236338,-500.0,9.998e-05,2]
[355977463,1741756236347,-500.0,9.998e-05,2]
[355977464,1741756236356,-1213.11,9.998e-05,2]
[355977465,1741756236366,-500.0,9.998e-05,2]
[355977466,1741756236375,-856.68,9.998e-05,2]
[355977467,1741756236385,-500.0,9.998e-05,2]
[355977468,1741756236394,-500.0,9.998e-05,2]
[355977469,1741756236403,-627.97,9.998e-05,2]
[355977470,1741756236412,-503.20482468,9.998e-05,2]
[355977471,1741756236422,-1049.99,9.998e-05,2]
[355977472,1741756236431,-505.94349005,9.998e-05,2]
[355977473,1741756236440,-501.84173781,9.998e-05,2]
[355977474,1741756236449,-500.0,9.998e-05,2]
[355977475,1741756236458,-500.0,9.998e-05,2]
[355977476,1741756236467,-981.32,9.998e-05,2]
[355977477,1741756236476,-500.0,9.998e-05,2]
[355977478,1741756236485,-507.127431,9.998e-05,2]
[355977479,1741756236494,-500.0,9.998e-05,2]
[355977480,1741756236503,-500.0,9.998e-05,2]
[355977481,1741756236512,-563.91,9.998e-05,2]
[355977482,1741756236522,-500.0,9.998e-05,2]
[355977483,1741756236531,-500.0,9.998e-05,2]
[355977484,1741756236540,-500.0,9.998e-05,2]
[355977485,1741756236549,-500.0,9.998e-05,2]
[355977486,1741756236559,-500.0,9.998e-05,2]
[355977487,1741756236568,-500.0,9.998e-05,2]
[355977488,1741756236577,-500.0,9.998e-05,2]
[355977489,1741756236586,-526.75,9.998e-05,2]
[355977490,1741756236595,-500.0,9.998e-05,2]
[355977491,1741756236605,-500.0,9.998e-05,2]
[355977492,1741756236614,-587.06,9.998e-05,2]
[355977493,1741756236623,-500.0,9.998e-05,2]
[355977494,1741756236632,-741.16,9.998e-05,2]
[355977495,1741756236642,-500.0,9.998e-05,2]
[355977496,1741756236651,-641.49,9.998e-05,2]
[355977497,1741756236660,-500.0,9.998e-05,2]
[355977498,1741756236669,-500.0,9.998e-05,2]
[355977499,1741756236678,-1803.34,9.998e-05,2]
[355977500,1741756236692,-500.0,9.998e-05,2]
[355977501,1741756236701,-500.0,9.998e-05,2]
[355977502,1741756236710,-500.0,9.998e-05,2]
[355977503,1741756236720,-4480.64,9.998e-05,2]
[355977504,1741756236730,-578.82,9.998e-05,2]
[355977505,1741756236739,-500.0,9.998e-05,2]
[355977506,1741756236748,-500.0,9.998e-05,2]
[355977507,1741756236758,-587.98,9.998e-05,2]
[355977508,1741756236768,-882.34,9.998e-05,2]
[355977509,1741756236778,-458.16383733,9.998e-05,2]
[355977510,1741756236787,-500.0,9.998e-05,2]
[355977511,1741756236797,-500.0,9.998e-05,2]
[355977512,1741756236806,-441.3329338,9.998e-05,2]
[355977513,1741756236815,-500.0,9.998e-05,2]
[355977514,1741756236824,-500.683795,9.998e-05,2]
[355977515,1741756236833,-500.0,9.998e-05,2]
[355977516,1741756236843,-500.0,9.998e-05,2]
[355977517,1741756236852,-506.27,9.998e-05,2]
[355977518,1741756236861,-570.66,9.998e-05,2]
[355977519,1741756236870,-500.0,9.998e-05,2]
[355977520,1741756236880,-500.0,9.998e-05,2]
[355977521,1741756236890,-682.89,9.998e-05,2]
[355977522,1741756236899,-500.0,9.998e-05,2]
[355977523,1741756236908,-500.0,9.998e-05,2]
[355977524,1741756236917,-590.65158925,9.998e-05,2]
[355977525,1741756236926,-608.39,9.998e-05,2]
[355977526,1741756236935,-500.0,9.998e-05,2]
[355977527,1741756236945,-1551.77,9.998e-05,2]
[355977528,1741756236954,-500.0,9.998e-05,2]
[355977529,1741756236963,-646.55,9.998e-05,2]
[355977530,1741756236972,-500.0,9.998e-05,2]
[355977531,1741756236981,-683.88,9.998e-05,2]
[355977532,1741756236991,-600.43,9.998e-05,2]
[355977533,1741756237000,-506.95,9.998e-05,2]
[355977534,1741756237010,-500.0,9.998e-05,2]
[355977535,1741756237019,-500.0,9.998e-05,2]
[355977536,1741756237028,-869.77,9.998e-05,2]
[355977537,1741756237037,-500.0,9.998e-05,2]
[355977538,1741756237047,-500.0,9.998e-05,2]
[355977539,1741756237056,-547.23,9.998e-05,2]
[355977540,1741756237065,-500.0,9.998e-05,2]
[355977541,1741756237075,-1461.1,9.998e-05,2]
[355977542,1741756237084,-1576.86,9.998e-05,2]
[355977543,1741756237093,-500.0,9.998e-05,2]
[355977544,1741756237102,-500.0,9.998e-05,2]
[355977545,1741756237112,-500.0,9.998e-05,2]
[355977546,1741756237121,-500.0,9.998e-05,2]
[355977547,1741756237321,-500.0,9.998e-05,2]
[355977548,1741756237331,-1354.59,9.998e-05,2]
[355977549,1741756237340,-286.55511001,9.998e-05,2]
[355977550,1741756237349,-500.0,9.998e-05,2]
[355977551,1741756237358,-539.88,9.998e-05,2]
[355977552,1741756237367,-500.0,9.998e-05,2]
[355977553,1741756237376,-505.63,9.998e-05,2]
[355977554,1741756237386,-500.0,9.998e-05,2]
[355977555,1741756237395,-500.0,9.998e-05,2]
[355977556,1741756237404,-1438.38,9.999e-05,2]
[355977557,1741756237413,-900.24,9.999e-05,2]
[355977558,1741756237422,-4914.82,9.999e-05,2]
[355977559,1741756237432,-683.51,9.999e-05,2]
[355977560,1741756237441,-500.0,9.999e-05,2]
[355977561,1741756237450,-834.39,9.999e-05,2]
[355977562,1741756237459,-500.0,9.999e-05,2]
[355977563,1741756237468,-1100.09,9.999e-05,2]
[355977564,1741756237478,-1223.32,9.999e-05,2]
[355977565,1741756237487,-998.18,9.999e-05,2]
[355977566,1741756237496,-1014.19,9.999e-05,2]
[355977567,1741756237506,-500.0,9.999e-05,2]
[355977568,1741756237515,-1075.18,9.999e-05,2]
[355977569,1741756237525,-500.0,9.999e-05,2]
[355977570,1741756237535,-207.11309693,9.999e-05,2]
[355977571,1741756237544,-1209.0,0.0001,2]
[355977572,1741756237554,-9316.00638737,0.0001,2]
[355977573,1741756237564,-1397122.55827706,0.0001,2]
[355977601,1741756240431,-5000.0,9.898e-05,2]
[355977602,1741756240441,-500.0,9.997e-05,2]
[355977603,1741756240450,-558.88582253,9.997e-05,2]
[355977604,1741756240460,-655.03,9.998e-05,2]
[355977605,1741756240470,-500.0,9.998e-05,2]
[355977606,1741756240479,-820005.45337068,0.0001,2]
[355977607,1741756240488,-900.16128228,0.0001,2]
[355977608,1741756240497,-200.0,0.0001,2]
[355977609,1741756240557,-7849.62028959,0.0001,2]
[355977610,1741756240567,-682869.17558961,0.0001,2]
[355977611,1741756240579,-2525.68671791,0.0001,2]
[355977631,1741756246382,-522.03,9.997e-05,2]
[355977632,1741756246391,-1117.38,9.997e-05,2]
[355977633,1741756246400,-560.45,9.997e-05,2]
[355977634,1741756246409,-244165.98398572,0.0001,2]
[355977635,1741756246495,-8201.5,0.0001,2]
[355977636,1741756246612,-8542.17012463,0.0001,2]
[355977645,1741756576402,1072.81,8.219e-05,2]
[355977647,1741756883927,343.01,8.83e-05,2]
[355977648,1741756987393,-326.96221774,9.998e-05,7]
[355977649,1741757180931,156.7,8.832e-05,2]
[355977650,1741757294817,23855.75,8.847e-05,2]
[355977655,1741757391350,371.08,8.837e-05,2]
[355977656,1741757402978,-242.83579196,9e-05,2]
[355977665,1741757431963,-307.16420804,9e-05,2]
[355977666,1741757431972,-150.0,9.046e-05,2]
[355977667,1741757431981,-1000.0,9.092e-05,2]
[355977668,1741757431990,-311.57,9.092e-05,2]
[355977669,1741757431999,-150.0,9.188e-05,2]
[355977670,1741757432008,-9198.2959,9.2e-05,2]
[355977671,1741757432017,-7514.6568,9.2e-05,2]
[355977672,1741757432026,-501.57357659,9.273e-05,2]
[355977673,1741757432035,-161.20425445,9.273e-05,2]
[355977674,1741757432044,-152.72,9.275e-05,2]
[355977675,1741757432054,-150.0,9.298e-05,2]
[355977676,1741757432067,-500.0,9.299e-05,2]
[355977677,1741757432076,-500.0,9.299e-05,2]
[355977678,1741757432085,-208.26980092,9.299e-05,2]
[355977679,1741757432095,-500.0,9.299e-05,2]
[355977680,1741757432105,-500.0,9.299e-05,2]
[355977681,1741757432115,-500.0,9.299e-05,2]
[355977682,1741757432123,-500.0,9.299e-05,2]
[355977684,1741757432134,-364.53530382,9.299e-05,2]
[355977686,1741757432143,-500.0,9.299e-05,2]
[355977687,1741757432152,-418.39301259,9.299e-05,2]
[355977688,1741757432161,-499.20453695,9.299e-05,2]
[355977689,1741757432170,-150.0,9.299e-05,2]
[355977690,1741757432180,-713145.00684338,9.3e-05,2]
[355977691,1741757432189,-152.72,9.353e-05,2]
[355977693,1741757432198,-152.72,9.43e-05,2]
[355977695,1741757432208,-152.72,9.507e-05,2]
[355977696,1741757432217,-11824.11,9.507e-05,2]
[355977697,1741757432227,-999.99,9.507e-05,2]
[355977698,1741757432235,-1000.0,9.572e-05,2]
[355977699,1741757432244,-152.72,9.585e-05,2]
[355977700,1741757432253,-152.72,9.662e-05,2]
[355977701,1741757432263,-150.0,9.729e-05,2]
[355977702,1741757432272,-353.12,9.729e-05,2]
[355977703,1741757432281,-150.0,9.729e-05,2]
[355977704,1741757432291,-1000.0,9.732e-05,2]
[355977705,1741757432300,-152.72,9.739e-05,2]
[355977706,1741757432309,-150.0,9.749e-05,2]
[355977707,1741757432319,-150.0,9.749e-05,2]
[355977708,1741757432328,-150.0,9.749e-05,2]
[355977709,1741757432338,-150.0,9.756e-05,2]
[355977710,1741757432347,-150.0,9.765e-05,2]
[355977711,1741757432357,-150.0,9.784e-05,2]
[355977712,1741757432366,-150.0,9.79e-05,2]
[355977713,1741757432375,-1000.0,9.807e-05,2]
[355977714,1741757432384,-1000.0,9.82e-05,2]
[355977715,1741757432394,-150.0,9.824e-05,2]
[355977716,1741757432403,-1028.97464764,9.825e-05,2]
[355977717,1741757432413,-150.0,9.827e-05,2]
[355977718,1741757432423,-1000.0,9.845e-05,2]
[355977719,1741757432432,-1000.0,9.854e-05,2]
[355977720,1741757432442,-1000.0,9.856e-05,2]
[355977721,1741757432451,-1000.0,9.86e-05,2]
[355977722,1741757432461,-267.19436576,9.867e-05,2]
[355977723,1741757432470,-152.89383961,9.87e-05,2]
[355977724,1741757432480,-1000.0,9.872e-05,2]
[355977725,1741757432490,-150.0,9.873e-05,2]
[355977726,1741757432499,-150.0,9.873e-05,2]
[355977727,1741757432508,-1000.0,9.881e-05,2]
[355977728,1741757432517,-991.92078563,9.883e-05,2]
[355977729,1741757432527,-150.0,9.886e-05,2]
[355977730,1741757432536,-904.3336921,9.887e-05,2]
[355977731,1741757432545,-300.39,9.89e-05,2]
[355977732,1741757432555,-1000.0,9.898e-05,2]
[355977733,1741757432564,-5000.0,9.899e-05,2]
[355977734,1741757432573,-150.0,9.9e-05,2]
[355977735,1741757432582,-3137.173,9.9e-05,2]
[355977736,1741757432592,-150.0,9.9e-05,2]
[355977737,1741757432601,-150.0,9.9e-05,2]
[355977738,1741757432610,-210.03622556,9.918e-05,2]
[355977739,1741757432619,-1000.0,9.921e-05,2]
[355977740,1741757432628,-150.0,9.927e-05,2]
[355977741,1741757432637,-1000.0,9.928e-05,2]
[355977742,1741757432646,-150.0,9.935e-05,2]
[355977743,1741757432655,-210.03622556,9.936e-05,2]
[355977744,1741757432664,-150.0,9.941e-05,2]
[355977745,1741757432674,-371.08,9.942e-05,2]
[355977746,1741757432683,-1000.0,9.944e-05,2]
[355977747,1741757432693,-150.0,9.949e-05,2]
[355977748,1741757432702,-1000.0,9.951e-05,2]
[355977749,1741757432711,-1000.0,9.952e-05,2]
[355977750,1741757432720,-150.0,9.963e-05,2]
[355977751,1741757432730,-1000.0,9.968e-05,2]
[355977752,1741757432739,-150.0,9.969e-05,2]
[355977753,1741757432748,-185.67944433,9.974e-05,2]
[355977754,1741757432758,-150.0,9.978e-05,2]
[355977755,1741757432767,-190.72591797,9.997e-05,2]
[355977756,1741757432776,-933.979,9.997e-05,2]
[355977757,1741757432785,-172.46252774,9.997e-05,2]
[355977758,1741757432795,-500.0,9.997e-05,2]
[355977759,1741757432804,-500.0,9.997e-05,2]
[355977760,1741757432813,-500.0,9.997e-05,2]
[355977761,1741757432822,-500.0,9.997e-05,2]
[355977762,1741757432831,-500.0,9.997e-05,2]
[355977763,1741757432840,-500.0,9.997e-05,2]
[355977764,1741757432849,-500.0,9.997e-05,2]
[355977765,1741757432858,-500.0,9.997e-05,2]
[355977766,1741757432867,-515.53,9.997e-05,2]
[355977767,1741757432877,-500.0,9.997e-05,2]
[355977768,1741757432886,-500.0,9.997e-05,2]
[355977769,1741757432895,-500.0,9.997e-05,2]
[355977770,1741757432904,-500.0,9.997e-05,2]
[355977771,1741757432913,-500.0,9.997e-05,2]
[355977772,1741757432926,-546.01,9.997e-05,2]
[355977773,1741757432935,-584.14,9.997e-05,2]
[355977774,1741757432944,-824.51,9.997e-05,2]
[355977775,1741757432953,-500.0,9.997e-05,2]
[355977776,1741757432962,-549.8,9.997e-05,2]
[355977777,1741757432971,-610.5,9.997e-05,2]
[355977778,1741757432980,-500.0,9.997e-05,2]
[355977779,1741757432990,-500.0,9.997e-05,2]
[355977780,1741757432999,-537.37438959,9.997e-05,2]
[355977781,1741757433008,-620.66,9.997e-05,2]
[355977782,1741757433017,-500.0,9.997e-05,2]
[355977783,1741757433026,-500.0,9.997e-05,2]
[355977784,1741757433035,-500.0,9.997e-05,2]
[355977785,1741757433045,-500.0,9.997e-05,2]
[355977786,1741757433055,-569.09,9.997e-05,2]
[355977787,1741757433067,-500.0,9.997e-05,2]
[355977788,1741757433077,-787.32,9.997e-05,2]
[355977789,1741757433085,-530.09865755,9.997e-05,2]
[355977790,1741757433095,-500.0,9.997e-05,2]
[355977791,1741757433105,-500.0,9.997e-05,2]
[355977792,1741757433115,-500.0,9.997e-05,2]
[355977793,1741757433125,-500.0,9.997e-05,2]
[355977794,1741757433135,-533.58674688,9.997e-05,2]
[355977795,1741757433147,-798.81,9.997e-05,2]
[355977796,1741757433157,-2198.9628572,9.997e-05,2]
[355977797,1741757433168,-199.2558537,9.997e-05,2]
[355977798,1741757433178,-500.0,9.998e-05,2]
[355977799,1741757433187,-500.0,9.998e-05,2]
[355977800,1741757433199,-500.0,9.998e-05,2]
[355977801,1741757433209,-500.0,9.998e-05,2]
[355977802,1741757433219,-500.0,9.998e-05,2]
[355977803,1741757433228,-500.0,9.998e-05,2]
[355977804,1741757433238,-500.0,9.998e-05,2]
[355977805,1741757433247,-500.0,9.998e-05,2]
[355977806,1741757433257,-500.0,9.998e-05,2]
[355977807,1741757433266,-500.0,9.998e-05,2]
[355977808,1741757433275,-500.0,9.998e-05,2]
[355977809,1741757433285,-549.21,9.998e-05,2]
[355977810,1741757433295,-322.79177063,9.998e-05,2]
[355977811,1741757433304,-500.0,9.998e-05,2]
[355977812,1741757433314,-500.0,9.998e-05,2]
[355977813,1741757433325,-500.0,9.998e-05,2]
[355977814,1741757433334,-500.0,9.998e-05,2]
[355977815,1741757433345,-500.0,9.998e-05,2]
[355977816,1741757433354,-14.72994841,9.998e-05,2]
[355977821,1741757437570,-442.20931429,9.998e-05,2]
[355977822,1741757437583,-24.06995928,9.998e-05,2]
[355977823,1741757437592,-500.0,9.998e-05,2]
[355977824,1741757437601,-117.10079603,9.998e-05,2]
[355977825,1741757437691,-410.78920397,9.998e-05,2]
[355977826,1741757437700,-195.68258643,9.998e-05,2]
[355977849,1741757439676,-304.31741357,9.998e-05,2]
[355977850,1741757439686,-500.0,9.998e-05,2]
[355977851,1741757439695,-500.0,9.998e-05,2]
[355977852,1741757439705,-500.0,9.998e-05,2]
[355977853,1741757439714,-640.06,9.998e-05,2]
[355977854,1741757439723,-500.0,9.998e-05,2]
[355977855,1741757439732,-656.57,9.998e-05,2]
[355977856,1741757439741,-500.0,9.998e-05,2]
[355977857,1741757439750,-500.0,9.998e-05,2]
[355977858,1741757439760,-500.0,9.998e-05,2]
[355977859,1741757439769,-549.09104782,9.998e-05,2]
[355977860,1741757439779,-585.49,9.998e-05,2]
[355977861,1741757439787,-325.43764234,9.998e-05,2]
[355977862,1741757439797,-573.03,9.998e-05,2]
[355977863,1741757439806,-562.0,9.998e-05,2]
[355977864,1741757439816,-500.0,9.998e-05,2]
[355977865,1741757439825,-500.0,9.998e-05,2]
[355977866,1741757439834,-520.44,9.998e-05,2]
[355977867,1741757439843,-545.38,9.998e-05,2]
[355977868,1741757439852,-500.0,9.998e-05,2]
[355977869,1741757439862,-500.0,9.998e-05,2]
[355977870,1741757439872,-500.0,9.998e-05,2]
[355977871,1741757439881,-500.0,9.998e-05,2]
[355977872,1741757439891,-500.0,9.998e-05,2]
[355977873,1741757439900,-500.0,9.998e-05,2]
[355977874,1741757439910,-500.0,9.998e-05,2]
[355977875,1741757439919,-500.0,9.998e-05,2]
[355977876,1741757439929,-620.25,9.998e-05,2]
[355977877,1741757439938,-500.0,9.998e-05,2]
[355977878,1741757439947,-538.42,9.998e-05,2]
[355977879,1741757439957,-500.0,9.998e-05,2]
[355977880,1741757439966,-500.0,9.998e-05,2]
[355977881,1741757439976,-500.0,9.998e-05,2]
[355977882,1741757439985,-500.0,9.998e-05,2]
[355977883,1741757439995,-500.0,9.998e-05,2]
[355977884,1741757440004,-150.942088,9.998e-05,2]
[355977885,1741757440013,-593.04,9.998e-05,2]
[355977886,1741757440023,-500.0,9.998e-05,2]
[355977887,1741757440032,-500.0,9.998e-05,2]
[355977888,1741757440042,-154.034078,9.998e-05,2]
[355977889,1741757440051,-500.0,9.998e-05,2]
[355977890,1741757440061,-153.003788,9.998e-05,2]
[355977891,1741757440074,-526.36,9.998e-05,2]
[355977892,1741757440084,-500.0,9.998e-05,2]
[355977893,1741757440094,-620.29,9.998e-05,2]
[355977894,1741757440104,-500.0,9.998e-05,2]
[355977895,1741757440113,-500.0,9.998e-05,2]
[355977896,1741757440122,-500.0,9.998e-05,2]
[355977897,1741757440131,-925.576335,9.998e-05,2]
[355977899,1741757440141,-500.0,9.998e-05,2]
[355977900,1741757440152,-626.75,9.998e-05,2]
[355977901,1741757440162,-500.0,9.998e-05,2]
[355977902,1741757440171,-500.0,9.998e-05,2]
[355977903,1741757440180,-500.0,9.998e-05,2]
[355977904,1741757440189,-500.0,9.998e-05,2]
[355977905,1741757440199,-549.45,9.998e-05,2]
[355977906,1741757440208,-605.17,9.998e-05,2]
[355977907,1741757440218,-579.74,9.998e-05,2]
[355977908,1741757440227,-500.0,9.998e-05,2]
[355977909,1741757440237,-500.0,9.998e-05,2]
[355977910,1741757440246,-500.0,9.998e-05,2]
[355977911,1741757440255,-500.0,9.998e-05,2]
[355977912,1741757440265,-517.34,9.998e-05,2]
[355977913,1741757440274,-500.0,9.998e-05,2]
[355977914,1741757440283,-663.16,9.998e-05,2]
[355977915,1741757440293,-500.0,9.998e-05,2]
[355977916,1741757440302,-500.0,9.998e-05,2]
[355977917,1741757440311,-500.0,9.998e-05,2]
[355977918,1741757440321,-902.01,9.998e-05,2]
[355977919,1741757440330,-500.0,9.998e-05,2]
[355977920,1741757440339,-500.0,9.998e-05,2]
[355977921,1741757440349,-1343.48,9.998e-05,2]
[355977922,1741757440360,-500.0,9.998e-05,2]
[355977923,1741757440369,-500.0,9.998e-05,2]
[355977924,1741757440378,-500.0,9.998e-05,2]
[355977925,1741757440387,-500.0,9.998e-05,2]
[355977926,1741757440397,-500.0,9.998e-05,2]
[355977927,1741757440406,-500.0,9.998e-05,2]
[355977928,1741757440415,-677.81,9.998e-05,2]
[355977929,1741757440424,-288.40931397,9.998e-05,2]
[355977930,1741757440434,-500.0,9.998e-05,2]
[355977931,1741757440443,-1086.58,9.998e-05,2]
[355977932,1741757440453,-1813.34,9.998e-05,2]
[355977933,1741757440463,-554.7,9.998e-05,2]
[355977934,1741757440472,-1463.39,9.998e-05,2]
[355977935,1741757440482,-500.0,9.998e-05,2]
[355977936,1741757440492,-858.17,9.998e-05,2]
[355977937,1741757440502,-526.07,9.998e-05,2]
[355977938,1741757440511,-500.0,9.998e-05,2]
[355977939,1741757440520,-1053.88,9.998e-05,2]
[355977940,1741757440530,-500.0,9.998e-05,2]
[355977941,1741757440539,-500.0,9.998e-05,2]
[355977942,1741757440549,-500.0,9.998e-05,2]
[355977943,1741757440558,-637.94,9.998e-05,2]
[355977944,1741757440567,-984.95,9.998e-05,2]
[355977945,1741757440577,-643.87,9.998e-05,2]
[355977946,1741757440586,-1216.96,9.998e-05,2]
[355977947,1741757440595,-500.0,9.998e-05,2]
[355977948,1741757440606,-566.0,9.998e-05,2]
[355977949,1741757440615,-500.0,9.998e-05,2]
[355977950,1741757440625,-2079.77,9.998e-05,2]
[355977951,1741757440634,-581.37,9.998e-05,2]
[355977952,1741757440643,-500.0,9.998e-05,2]
[355977953,1741757440652,-185.51644069,9.998e-05,2]
[355977954,1741757440661,-500.0,9.998e-05,2]
[355977955,1741757440670,-682.64,9.998e-05,2]
[355977956,1741757440680,-500.0,9.998e-05,2]
[355977957,1741757440689,-500.0,9.998e-05,2]
[355977958,1741757440698,-500.0,9.998e-05,2]
[355977959,1741757440708,-1062.27,9.998e-05,2]
[355977960,1741757440716,-1557.51,9.998e-05,2]
[355977961,1741757440725,-1310.22,9.998e-05,2]
[355977962,1741757440735,-846.51,9.998e-05,2]
[355977963,1741757440744,-500.0,9.998e-05,2]
[355977964,1741757440753,-514.4,9.998e-05,2]
[355977965,1741757440762,-1810.01,9.998e-05,2]
[355977966,1741757440771,-516.84,9.998e-05,2]
[355977967,1741757440780,-1400.72,9.998e-05,2]
[355977968,1741757440790,-1726.1,9.998e-05,2]
[355977969,1741757440799,-500.0,9.998e-05,2]
[355977970,1741757440808,-1855.36,9.998e-05,2]
[355977971,1741757440818,-4497.22,9.998e-05,2]
[355977972,1741757440827,-500.0,9.998e-05,2]
[355977973,1741757440836,-500.0,9.998e-05,2]
[355977974,1741757440845,-500.0,9.998e-05,2]
[355977975,1741757440855,-2011.7,9.998e-05,2]
[355977976,1741757440865,-2368.63,9.998e-05,2]
[355977977,1741757440875,-500.0,9.998e-05,2]
[355977978,1741757440884,-500.0,9.998e-05,2]
[355977979,1741757440895,-502.57,9.998e-05,2]
[355977980,1741757440904,-500.0,9.998e-05,2]
[355977981,1741757440914,-678.32,9.998e-05,2]
[355977982,1741757440923,-500.0,9.998e-05,2]
[355977983,1741757440933,-500.0,9.998e-05,2]
[355977984,1741757440943,-500.0,9.998e-05,2]
[355977985,1741757440952,-966.15,9.998e-05,2]
[355977986,1741757440962,-500.0,9.998e-05,2]
[355977987,1741757440971,-500.0,9.998e-05,2]
[355977988,1741757440981,-500.0,9.998e-05,2]
[355977989,1741757440991,-572.78,9.998e-05,2]
[355977990,1741757441001,-1728.1,9.998e-05,2]
[355977991,1741757441010,-4074.03,9.998e-05,2]
[355977992,1741757441019,-574.5,9.998e-05,2]
[355977993,1741757441029,-500.0,9.998e-05,2]
[355977994,1741757441038,-500.0,9.998e-05,2]
[355977995,1741757441047,-500.0,9.998e-05,2]
[355977996,1741757441057,-1243.85,9.998e-05,2]
[355977997,1741757441071,-531.5,9.998e-05,2]
[355977998,1741757441080,-500.0,9.998e-05,2]
[355977999,1741757441090,-1282.07,9.998e-05,2]
[355978000,1741757441099,-610.64,9.998e-05,2]
[355978001,1741757441110,-500.0,9.998e-05,2]
[355978002,1741757441119,-835.05,9.998e-05,2]
[355978003,1741757441128,-600.27,9.998e-05,2]
[355978004,1741757441140,-648.95,9.998e-05,2]
[355978005,1741757441152,-2595.54,9.998e-05,2]
[355978006,1741757441163,-729.61,9.998e-05,2]
[355978007,1741757441173,-576.22,9.998e-05,2]
[355978008,1741757441183,-655.38,9.998e-05,2]
[355978009,1741757441192,-1012.57,9.998e-05,2]
[355978010,1741757441202,-704.73,9.998e-05,2]
[355978011,1741757441211,-763.8,9.998e-05,2]
[355978012,1741757441221,-500.0,9.998e-05,2]
[355978013,1741757441230,-833.53,9.998e-05,2]
[355978014,1741757441239,-1149.32,9.998e-05,2]